fUST/lending_fUST_20240503
["ID","MTS","AMOUNT","RATE_DAILY","PERIOD"]
[325335408,1714741846369,-501.35299393,0.00027397,2]
[325335411,1714741846381,-585.94522599,0.00027397,2]
[325335412,1714741846391,-341.3998692,0.00027397,2]
[325335414,1714741846400,-501.23104585,0.00027397,2]
[325335416,1714741846409,-500.0,0.00027397,2]
[325335419,1714741846419,-500.0,0.00027397,2]
[325335421,1714741846428,-500.0,0.00027397,2]
[325335423,1714741846437,-500.0,0.00027397,2]
[325335424,1714741846447,-959.64,0.00027397,2]
[325335427,1714741846456,-488.12742193,0.00027397,2]
[325335429,1714741846466,-500.0,0.00027397,2]
[325335430,1714741846475,-500.0,0.00027397,2]
[325335432,1714741846484,-500.0,0.00027397,2]
[325335435,1714741846494,-507.08998506,0.00027397,2]
[325335437,1714741846503,-500.0,0.00027397,2]
[325335439,1714741846512,-3644.99,0.00027397,2]
[325335442,1714741846522,-819.83,0.00027397,2]
[325335445,1714741846531,-624.26,0.00027397,2]
[325335448,1714741846540,-500.40209111,0.00027397,2]
[325335450,1714741846549,-500.0,0.00027397,2]
[325335454,1714741846558,-500.0,0.00027397,2]
[325335456,1714741846568,-500.0,0.00027397,2]
[325335459,1714741846577,-500.0,0.00027397,2]
[325335462,1714741846587,-500.0,0.00027397,2]
[325335465,1714741846596,-500.0,0.00027397,2]
[325335468,1714741846605,-500.0,0.00027397,2]
[325335471,1714741846615,-500.0,0.00027397,2]
[325335473,1714741846624,-500.0,0.00027397,2]
[325335475,1714741846636,-500.0,0.00027397,2]
[325335477,1714741846645,-500.0,0.00027397,2]
[325335479,1714741846654,-502.59646339,0.00027397,2]
[325335482,1714741846664,-500.0,0.00027397,2]
[325335484,1714741846673,-500.0,0.00027397,2]
[325335485,1714741846683,-500.0,0.00027397,2]
[325335487,1714741846692,-500.0,0.00027397,2]
[325335490,1714741846702,-500.0,0.00027397,2]
[325335491,1714741846711,-500.0,0.00027397,2]
[325335493,1714741846720,-500.0,0.00027397,2]
[325335495,1714741846729,-500.0,0.00027397,2]
[325335497,1714741846739,-500.0,0.00027397,2]
[325335500,1714741846749,-500.0,0.00027397,2]
[325335501,1714741846758,-500.0,0.00027397,2]
[325335503,1714741846767,-543.99,0.00027397,2]
[325335506,1714741846776,-154.9665915,0.00027397,2]
[325335507,1714741846786,-500.0,0.00027397,2]
[325335509,1714741846795,-500.0,0.00027397,2]
[325335512,1714741846805,-500.0,0.00027397,2]
[325335514,1714741846815,-500.0,0.00027397,2]
[325335516,1714741846824,-504.22070271,0.00027397,2]
[325335518,1714741846833,-500.0,0.00027397,2]
[325335520,1714741846842,-500.0,0.00027397,2]
[325335521,1714741846852,-500.0,0.00027397,2]
[325335523,1714741846861,-561.19738504,0.00027397,2]
[325335525,1714741846871,-229.12687486,0.00027397,2]
[325335527,1714741846882,-500.0,0.00027397,2]
[325335530,1714741846894,-500.0,0.00027397,2]
[325335532,1714741846910,-500.0,0.00027397,2]
[325335533,1714741846920,-2377.33,0.00027397,2]
[325335536,1714741846930,-196.63281435,0.00027397,2]
[325335538,1714741846940,-500.0,0.00027397,2]
[325335540,1714741846950,-500.0,0.00027397,2]
[325335541,1714741846959,-300.11164802,0.00027397,2]
[325335543,1714741846969,-500.0,0.00027397,2]
[325335546,1714741846979,-503.19215641,0.00027397,2]
[325335548,1714741846989,-507.26,0.00027397,2]
[325335550,1714741846998,-504.82425592,0.00027397,2]
[325335551,1714741847007,-500.0,0.00027397,2]
[325335554,1714741847017,-500.0,0.00027397,2]
[325335556,1714741847026,-500.0,0.00027397,2]
[325335558,1714741847035,-500.0,0.00027397,2]
[325335560,1714741847044,-628.35,0.00027397,2]
[325335561,1714741847054,-613.85,0.00027397,2]
[325335563,1714741847063,-500.0,0.00027397,2]
[325335566,1714741847073,-500.0,0.00027397,2]
[325335568,1714741847086,-1000.0,0.00027397,2]
[325335570,1714741847096,-500.0,0.00027397,2]
[325335572,1714741847106,-900.8,0.00027397,2]
[325335574,1714741847115,-621.44,0.00027397,2]
[325335576,1714741847124,-500.0,0.00027397,2]
[325335578,1714741847136,-628.68,0.00027397,2]
[325335580,1714741847145,-500.0,0.00027397,2]
[325335582,1714741847154,-500.0,0.00027397,2]
[325335584,1714741847163,-500.0,0.00027397,2]
[325335586,1714741847173,-500.0,0.00027397,2]
[325335588,1714741847182,-500.0,0.00027397,2]
[325335590,1714741847191,-501.00071847,0.00027397,2]
[325335592,1714741847201,-500.0,0.00027397,2]
[325335594,1714741847210,-502.93844954,0.00027397,2]
[325335596,1714741847220,-500.0,0.00027397,2]
[325335598,1714741847230,-500.0,0.00027397,2]
[325335600,1714741847240,-500.0,0.00027397,2]
[325335602,1714741847249,-500.0,0.00027397,2]
[325335604,1714741847258,-500.0,0.00027397,2]
[325335606,1714741847267,-510.16678668,0.00027397,2]
[325335608,1714741847276,-500.0,0.00027397,2]
[325335610,1714741847286,-621.9,0.00027397,2]
[325335612,1714741847296,-2259.02,0.00027397,2]
[325335614,1714741847305,-1132.19,0.00027397,2]
[325335616,1714741847314,-500.0,0.00027397,2]
[325335618,1714741847324,-500.0,0.00027397,2]
[325335620,1714741847334,-500.0,0.00027397,2]
[325335622,1714741847344,-500.0,0.00027397,2]
[325335624,1714741847354,-500.0,0.00027397,2]
[325335626,1714741847363,-500.0,0.00027397,2]
[325335628,1714741847372,-500.0,0.00027397,2]
[325335630,1714741847382,-625.65610245,0.00027397,2]
[325335632,1714741847393,-647.13,0.00027397,2]
[325335634,1714741847402,-500.0,0.00027397,2]
[325335636,1714741847411,-500.0,0.00027397,2]
[325335638,1714741847421,-500.0,0.00027397,2]
[325335640,1714741847430,-500.0,0.00027397,2]
[325335642,1714741847441,-759.19,0.00027397,2]
[325335644,1714741847451,-616.52,0.00027397,2]
[325335646,1714741847460,-412.48839806,0.00027397,2]
[325335648,1714741847470,-500.0,0.00027397,2]
[325335650,1714741847479,-500.0,0.00027397,2]
[325335653,1714741847489,-500.0,0.00027397,2]
[325335654,1714741847498,-323.65000496,0.00027397,2]
[325335657,1714741847508,-500.0,0.00027397,2]
[325335659,1714741847517,-500.0,0.00027397,2]
[325335661,1714741847527,-500.0,0.00027397,2]
[325335663,1714741847536,-500.0,0.00027397,2]
[325335665,1714741847545,-519.08885811,0.00027397,2]
[325335667,1714741847554,-500.0,0.00027397,2]
[325335669,1714741847563,-500.0,0.00027397,2]
[325335671,1714741847572,-500.0,0.00027397,2]
[325335673,1714741847581,-500.0,0.00027397,2]
[325335675,1714741847591,-485.17695649,0.00027397,2]
[325335677,1714741847600,-500.0,0.00027397,2]
[325335679,1714741847609,-500.0,0.00027397,2]
[325335681,1714741847618,-500.0,0.00027397,2]
[325335683,1714741847628,-502.07,0.00027397,2]
[325335685,1714741847637,-500.0,0.00027397,2]
[325335687,1714741847646,-500.0,0.00027397,2]
[325335689,1714741847655,-500.0,0.00027397,2]
[325335691,1714741847664,-500.0,0.00027397,2]
[325335693,1714741847674,-500.0,0.00027397,2]
[325335694,1714741847683,-1445.36,0.00027397,2]
[325335696,1714741847693,-500.0,0.00027397,2]
[325335709,1714741847797,-500.0,0.00027397,2]
[325335711,1714741847808,-500.0,0.00027397,2]
[325335713,1714741847818,-955.09,0.00027397,2]
[325335715,1714741847828,-500.0,0.00027397,2]
[325335717,1714741847839,-500.0,0.00027397,2]
[325335719,1714741847849,-500.0,0.00027397,2]
[325335721,1714741847859,-500.0,0.00027397,2]
[325335723,1714741847868,-500.0,0.00027397,2]
[325335725,1714741847880,-500.0,0.00027397,2]
[325335727,1714741847891,-588.22,0.00027397,2]
[325335729,1714741847900,-500.0,0.00027397,2]
[325335731,1714741847910,-500.0,0.00027397,2]
[325335733,1714741847920,-500.0,0.00027397,2]
[325335735,1714741847929,-630.03183561,0.00027397,2]
[325335736,1714741847939,-500.0,0.00027397,2]
[325335738,1714741847948,-623.43,0.00027397,2]
[325335740,1714741847958,-500.0,0.00027397,2]
[325335742,1714741847967,-500.0,0.00027397,2]
[325335744,1714741847977,-500.0,0.00027397,2]
[325335746,1714741847988,-500.0,0.00027397,2]
[325335749,1714741847998,-746.14,0.00027397,2]
[325335751,1714741848007,-500.0,0.00027397,2]
[325335753,1714741848016,-500.0,0.00027397,2]
[325335755,1714741848026,-500.0,0.00027397,2]
[325335757,1714741848035,-152.85126628,0.00027397,2]
[325335759,1714741848044,-311.81691252,0.00027397,2]
[325335761,1714741848053,-500.0,0.00027397,2]
[325335763,1714741848062,-500.0,0.00027397,2]
[325335765,1714741848072,-594.08828606,0.00027397,2]
[325335766,1714741848082,-500.0,0.00027397,2]
[325335768,1714741848092,-500.0,0.00027397,2]
[325335770,1714741848102,-500.0,0.00027397,2]
[325335772,1714741848111,-500.0,0.00027397,2]
[325335774,1714741848121,-500.0,0.00027397,2]
[325335776,1714741848131,-500.0,0.00027397,2]
[325335778,1714741848141,-500.0,0.00027397,2]
[325335780,1714741848150,-500.0,0.00027397,2]
[325335782,1714741848159,-500.0,0.00027397,2]
[325335784,1714741848168,-500.0,0.00027397,2]
[325335787,1714741848178,-500.0,0.00027397,2]
[325335789,1714741848187,-500.0,0.00027397,2]
[325335790,1714741848196,-500.0,0.00027397,2]
[325335793,1714741848205,-500.0,0.00027397,2]
[325335794,1714741848215,-500.0,0.00027397,2]
[325335796,1714741848224,-500.0,0.00027397,2]
[325335799,1714741848233,-500.0,0.00027397,2]
[325335801,1714741848242,-500.0,0.00027397,2]
[325335802,1714741848251,-500.0,0.00027397,2]
[325335804,1714741848260,-500.0,0.00027397,2]
[325335806,1714741848269,-500.0,0.00027397,2]
[325335808,1714741848278,-225.6875305,0.00027397,2]
[325335810,1714741848287,-500.0,0.00027397,2]
[325335812,1714741848296,-500.0,0.00027397,2]
[325335814,1714741848305,-763.91,0.00027397,2]
[325335816,1714741848314,-500.0,0.00027397,2]
[325335818,1714741848323,-500.0,0.00027397,2]
[325335821,1714741848333,-500.0,0.00027397,2]
[325335822,1714741848342,-2744.85,0.00027397,2]
[325335825,1714741848352,-611.212327,0.00027397,2]
[325335827,1714741848361,-500.0,0.00027397,2]
[325335828,1714741848370,-500.0,0.00027397,2]
[325335831,1714741848381,-500.0,0.00027397,2]
[325335832,1714741848390,-500.0,0.00027397,2]
[325335833,1714741848399,-500.0,0.00027397,2]
[325335834,1714741848408,-500.0,0.00027397,2]
[325335835,1714741848417,-371.64985003,0.00027397,2]
[325335836,1714741848427,-2083.35,0.00027397,2]
[325335837,1714741848436,-500.0,0.00027397,2]
[325335838,1714741848447,-190.91818941,0.00027397,2]
[325335839,1714741848456,-500.0,0.00027397,2]
[325335840,1714741848466,-225.08618333,0.00027397,2]
[325335841,1714741848476,-500.0,0.00027397,2]
[325335842,1714741848486,-500.0,0.00027397,2]
[325335843,1714741848495,-941.48,0.00027397,2]
[325335844,1714741848505,-500.0,0.00027397,2]
[325335845,1714741848515,-500.0,0.00027397,2]
[325335846,1714741848525,-500.0,0.00027397,2]
[325335847,1714741848535,-500.0,0.00027397,2]
[325335848,1714741848544,-500.0,0.00027397,2]
[325335849,1714741848554,-500.0,0.00027397,2]
[325335850,1714741848564,-500.0,0.00027397,2]
[325335851,1714741848574,-501.15550716,0.00027397,2]
[325335852,1714741848584,-500.0,0.00027397,2]
[325335853,1714741848594,-500.0,0.00027397,2]
[325335854,1714741848603,-500.0,0.00027397,2]
[325335855,1714741848613,-500.0,0.00027397,2]
[325335856,1714741848622,-500.0,0.00027397,2]
[325335857,1714741848633,-510.23408785,0.00027397,2]
[325335858,1714741848642,-281.66344664,0.00027397,2]
[325335859,1714741848651,-500.0,0.00027397,2]
[325335860,1714741848661,-500.0,0.00027397,30]
[325335861,1714741848670,-500.0,0.00027397,2]
[325335862,1714741848679,-500.0,0.00027397,2]
[325335863,1714741848689,-797.41,0.00027397,2]
[325335864,1714741848698,-500.0,0.00027397,2]
[325335865,1714741848707,-500.0,0.00027397,2]
[325335866,1714741848717,-500.0,0.00027397,2]
[325335867,1714741848726,-903.72,0.00027397,2]
[325335868,1714741848735,-208.52291072,0.00027397,2]
[325335869,1714741848744,-500.0,0.00027397,2]
[325335870,1714741848754,-500.0,0.00027397,2]
[325335871,1714741848763,-500.0,0.00027397,2]
[325335872,1714741848772,-500.0,0.00027397,2]
[325335873,1714741848781,-583.10349201,0.00027397,2]
[325335874,1714741848791,-547.17,0.00027397,2]
[325335875,1714741848800,-556.82,0.00027397,2]
[325335876,1714741848809,-500.0,0.00027397,2]
[325335877,1714741848819,-500.0,0.00027397,2]
[325335878,1714741848828,-500.0,0.00027397,2]
[325335879,1714741848837,-500.0,0.00027397,2]
[325335880,1714741848847,-903.36,0.00027397,2]
[325335881,1714741848856,-500.0,0.00027397,2]
[325335882,1714741848866,-500.0,0.00027397,2]
[325335883,1714741848875,-500.7,0.00027397,2]
[325335884,1714741848887,-541.26,0.00027397,2]
[325335885,1714741848900,-1870.21,0.00027397,2]
[325335886,1714741848909,-500.0,0.00027397,2]
[325335887,1714741848918,-500.0,0.00027397,2]
[325335888,1714741848927,-504.11406531,0.00027397,2]
[325335889,1714741848937,-500.0,0.00027397,2]
[325335890,1714741848947,-500.0,0.00027397,2]
[325335891,1714741848956,-500.0,0.00027397,2]
[325335892,1714741848965,-500.0,0.00027397,2]
[325335893,1714741848974,-500.0,0.00027397,2]
[325335894,1714741848984,-500.0,0.00027397,2]
[325335895,1714741848996,-506.05596948,0.00027397,2]
[325335896,1714741849005,-500.0,0.00027397,2]
[325335897,1714741849014,-481.6077832,0.00027397,2]
[325335898,1714741849023,-500.0,0.00027397,2]
[325335899,1714741849033,-627.47,0.00027397,2]
[325335900,1714741849042,-500.0,0.00027397,2]
[325335901,1714741849051,-500.0,0.00027397,2]
[325335902,1714741849060,-500.0,0.00027397,2]
[325335903,1714741849069,-500.0,0.00027397,2]
[325335904,1714741849079,-500.0,0.00027397,2]
[325335905,1714741849089,-199.44089282,0.00027397,2]
[325335906,1714741849098,-500.0,0.00027397,2]
[325335907,1714741849108,-500.0,0.00027397,2]
[325335908,1714741849119,-590.52,0.00027397,2]
[325335909,1714741849129,-500.0,0.00027397,2]
[325335910,1714741849139,-500.0,0.00027397,2]
[325335911,1714741849148,-509.69417805,0.00027397,2]
[325335912,1714741849157,-500.0,0.00027397,2]
[325335913,1714741849166,-947.49,0.00027397,2]
[325335914,1714741849175,-500.0,0.00027397,2]
[325335915,1714741849184,-500.0,0.00027397,2]
[325335916,1714741849193,-500.0,0.00027397,2]
[325335917,1714741849202,-500.0,0.00027397,2]
[325335918,1714741849211,-500.0,0.00027397,2]
[325335919,1714741849220,-500.0,0.00027397,2]
[325335920,1714741849229,-501.22721814,0.00027397,2]
[325335921,1714741849238,-500.0,0.00027397,2]
[325335922,1714741849247,-941.12,0.00027397,2]
[325335923,1714741849257,-500.0,0.00027397,2]
[325335924,1714741849266,-500.0,0.00027397,2]
[325335925,1714741849276,-500.0,0.00027397,2]
[325335927,1714741849284,-1070.48,0.00027397,2]
[325335929,1714741849293,-500.0,0.00027397,2]
[325335930,1714741849302,-500.0,0.00027397,2]
[325335931,1714741849311,-500.0,0.00027397,2]
[325335933,1714741849321,-689.92,0.00027397,2]
[325335935,1714741849330,-500.0,0.00027397,2]
[325335936,1714741849339,-500.0,0.00027397,2]
[325335937,1714741849348,-500.0,0.00027397,2]
[325335938,1714741849357,-500.0,0.00027397,2]
[325335940,1714741849366,-1640.45,0.00027397,2]
[325335942,1714741849376,-500.0,0.00027397,2]
[325335944,1714741849387,-569.83,0.00027397,2]
[325335946,1714741849397,-500.0,0.00027397,2]
[325335948,1714741849406,-1254.52,0.00027397,2]
[325335950,1714741849415,-500.0,0.00027397,2]
[325335952,1714741849425,-500.0,0.00027397,2]
[325335954,1714741849435,-505.72785877,0.00027397,2]
[325335957,1714741849445,-500.0,0.00027397,2]
[325335958,1714741849455,-500.0,0.00027397,2]
[325335960,1714741849464,-500.0,0.00027397,2]
[325335962,1714741849473,-500.0,0.00027397,2]
[325335964,1714741849482,-500.0,0.00027397,2]
[325335967,1714741849491,-414.70543357,0.00027397,2]
[325335968,1714741849501,-694.73,0.00027397,2]
[325335970,1714741849510,-3678.26,0.00027397,2]
[325335972,1714741849519,-500.0,0.00027397,2]
[325335974,1714741849528,-636.20747764,0.00027397,2]
[325335976,1714741849537,-500.0,0.00027397,2]
[325335978,1714741849546,-500.0,0.00027397,2]
[325335980,1714741849555,-248.20234423,0.00027397,2]
[325335982,1714741849564,-500.0,0.00027397,2]
[325335984,1714741849574,-500.0,0.00027397,2]
[325335986,1714741849583,-500.0,0.00027397,2]
[325335988,1714741849592,-500.0,0.00027397,2]
[325335990,1714741849602,-1194.3,0.00027397,2]
[325335992,1714741849611,-500.0,0.00027397,2]
[325335994,1714741849620,-688.09,0.00027397,2]
[325335996,1714741849630,-500.0,0.00027397,2]
[325335998,1714741849639,-436.05229062,0.00027397,2]
[325336009,1714741849648,-11117.32,0.00027397,2]
[325336012,1714741849749,-500.0,0.00027397,2]
[325336014,1714741849759,-500.0,0.00027397,2]
[325336016,1714741849768,-500.0,0.00027397,2]
[325336018,1714741849778,-500.0,0.00027397,2]
[325336020,1714741849787,-626.73542985,0.00027397,2]
[325336022,1714741849796,-500.0,0.00027397,2]
[325336024,1714741849805,-500.0,0.00027397,2]
[325336026,1714741849815,-500.0,0.00027397,2]
[325336028,1714741849825,-245.642179,0.00027397,2]
[325336030,1714741849835,-1042.93961362,0.00027397,14]
[325336032,1714741849844,-500.0,0.00027397,2]
[325336034,1714741849853,-376.1396623,0.00027397,2]
[325336035,1714741849862,-640.36,0.00027397,2]
[325336037,1714741849871,-545.92,0.00027397,2]
[325336039,1714741849882,-4961.91,0.00027397,2]
[325336041,1714741849892,-816.93,0.00027397,2]
[325336044,1714741849901,-500.0,0.00027397,2]
[325336046,1714741849915,-500.0,0.00027397,2]
[325336048,1714741849924,-503.74262043,0.00027397,2]
[325336049,1714741849933,-500.0,0.00027397,2]
[325336051,1714741849943,-4258.44,0.00027397,2]
[325336053,1714741849952,-500.0,0.00027397,2]
[325336055,1714741849962,-651.25,0.00027397,2]
[325336057,1714741849972,-500.0,0.00027397,2]
[325336060,1714741849981,-598.24665303,0.00027397,2]
[325336061,1714741849992,-500.0,0.00027397,2]
[325336063,1714741850002,-597.76436243,0.00027397,2]
[325336066,1714741850013,-500.0,0.00027397,2]
[325336067,1714741850023,-622.14,0.00027397,2]
[325336069,1714741850032,-500.0,0.00027397,2]
[325336071,1714741850042,-569.80155298,0.00027397,2]
[325336073,1714741850051,-631.6,0.00027397,2]
[325336075,1714741850060,-500.0,0.00027397,2]
[325336077,1714741850070,-500.0,0.00027397,2]
[325336079,1714741850080,-500.0,0.00027397,2]
[325336081,1714741850090,-154.6548122,0.00027397,2]
[325336083,1714741850100,-500.0,0.00027397,2]
[325336085,1714741850110,-500.0,0.00027397,2]
[325336087,1714741850119,-500.0,0.00027397,2]
[325336089,1714741850131,-500.0,0.00027397,2]
[325336091,1714741850140,-500.0,0.00027397,2]
[325336093,1714741850150,-500.0,0.00027397,2]
[325336095,1714741850160,-500.0,0.00027397,2]
[325336097,1714741850169,-500.0,0.00027397,2]
[325336099,1714741850179,-500.0,0.00027397,2]
[325336101,1714741850188,-500.0,0.00027397,2]
[325336103,1714741850197,-500.0,0.00027397,2]
[325336105,1714741850207,-500.0,0.00027397,2]
[325336107,1714741850216,-318.02675897,0.00027397,2]
[325336109,1714741850226,-500.0,0.00027397,2]
[325336111,1714741850235,-500.0,0.00027397,2]
[325336113,1714741850245,-500.0,0.00027397,2]
[325336115,1714741850254,-300.0,0.00027397,2]
[325336117,1714741850263,-500.0,0.00027397,2]
[325336119,1714741850272,-500.0,0.00027397,2]
[325336121,1714741850282,-500.0,0.00027397,2]
[325336123,1714741850291,-500.0,0.00027397,2]
[325336124,1714741850300,-531.38,0.00027397,2]
[325336126,1714741850309,-500.0,0.00027397,2]
[325336128,1714741850319,-500.0,0.00027397,2]
[325336130,1714741850328,-500.0,0.00027397,2]
[325336132,1714741850337,-361.92641249,0.00027397,2]
[325336134,1714741850346,-500.0,0.00027397,2]
[325336136,1714741850356,-5874.25143308,0.00027397,2]
[325336293,1714741852060,-1000.0,0.00027085,2]
[325336295,1714741852071,-491.84,0.0002709,3]
[325336296,1714741852081,-37569.14856692,0.00027397,2]
[325336298,1714741852095,-500.0,0.00027397,2]
[325336299,1714741852105,-450.08522726,0.00027397,2]
[325336301,1714741852116,-500.0,0.00027397,2]
[325336303,1714741852126,-1794.5,0.00027397,2]
[325336305,1714741852138,-500.0,0.00027397,2]
[325336306,1714741852148,-2752.97,0.00027397,2]
[325336308,1714741852158,-593.86,0.00027397,2]
[325336310,1714741852168,-500.0,0.00027397,2]
[325336312,1714741852178,-1595.71,0.00027397,2]
[325336313,1714741852188,-500.0,0.00027397,2]
[325336315,1714741852198,-962.85,0.00027397,2]
[325336317,1714741852208,-526.21656171,0.00027397,2]
[325336318,1714741852218,-500.0,0.00027397,2]
[325336319,1714741852228,-1024.43,0.00027397,2]
[325336321,1714741852238,-2142.48,0.00027397,2]
[325336322,1714741852249,-1290.17,0.00027397,2]
[325336323,1714741852258,-500.0,0.00027397,2]
[325336324,1714741852268,-295.90310413,0.00027397,2]
[325336325,1714741852278,-500.0,0.00027397,2]
[325336326,1714741852287,-13139.11,0.00027397,2]
[325336327,1714741852296,-500.0,0.00027397,2]
[325336328,1714741852306,-500.0,0.00027397,2]
[325336329,1714741852432,-500.0,0.00027397,2]
[325336330,1714741852443,-500.0,0.00027397,2]
[325336331,1714741852455,-500.0,0.00027397,2]
[325336332,1714741852465,-500.0,0.00027397,2]
[325336333,1714741852475,-500.0,0.00027397,2]
[325336334,1714741852485,-500.0,0.00027397,2]
[325336335,1714741852494,-500.0,0.00027397,2]
[325336336,1714741852504,-505.69479647,0.00027397,2]
[325336337,1714741852514,-1960.42,0.00027397,2]
[325336338,1714741852523,-500.0,0.00027397,2]
[325336339,1714741852533,-504.17834001,0.00027397,2]
[325336340,1714741852542,-500.0,0.00027397,2]
[325336341,1714741852552,-500.0,0.00027397,2]
[325336342,1714741852563,-500.0,0.00027397,2]
[325336343,1714741852573,-500.0,0.00027397,2]
[325336344,1714741852583,-378.14043166,0.00027397,2]
[325336345,1714741852593,-500.0,0.00027397,2]
[325336346,1714741852603,-500.0,0.00027397,2]
[325336347,1714741852612,-500.0,0.00027397,2]
[325336348,1714741852621,-4068.98,0.00027397,2]
[325336349,1714741852631,-500.0,0.00027397,2]
[325336350,1714741852643,-500.0,0.00027397,2]
[325336351,1714741852652,-500.0,0.00027397,2]
[325336352,1714741852662,-500.0,0.00027397,2]
[325336353,1714741852671,-500.0,0.00027397,2]
[325336354,1714741852681,-1112.52,0.00027397,2]
[325336355,1714741852690,-500.0,0.00027397,2]
[325336356,1714741852699,-500.0,0.00027397,2]
[325336357,1714741852710,-262.42442175,0.00027397,2]
[325336358,1714741852719,-500.0,0.00027397,2]
[325336359,1714741852729,-316.80677657,0.00027397,2]
[325336360,1714741852738,-500.0,0.00027397,2]
[325336361,1714741852747,-501.61,0.00027397,2]
[325336362,1714741852757,-500.0,0.00027397,2]
[325336363,1714741852767,-500.0,0.00027397,2]
[325336364,1714741852777,-500.0,0.00027397,2]
[325336365,1714741852786,-513.43258317,0.00027397,2]
[325336366,1714741852796,-500.0,0.00027397,2]
[325336367,1714741852805,-7739.29,0.00027397,2]
[325336368,1714741852815,-14893.48,0.00027397,2]
[325336369,1714741852825,-500.0,0.00027397,2]
[325336370,1714741852835,-604.21,0.00027397,2]
[325336371,1714741852845,-500.0,0.00027397,2]
[325336372,1714741852856,-500.0,0.00027397,2]
[325336373,1714741852866,-500.0,0.00027397,2]
[325336374,1714741852876,-644.79,0.00027397,2]
[325336375,1714741852886,-500.0,0.00027397,2]
[325336376,1714741852898,-782.55,0.00027397,2]
[325336377,1714741852909,-1383.1,0.00027397,2]
[325336378,1714741852924,-500.0,0.00027397,2]
[325336379,1714741852934,-4413.3922011,0.00027397,2]
[325336408,1714741997336,1440.35636438,0.00025203,30]
[325336409,1714742013334,1440.35636438,0.00026573,30]
[325336410,1714742031976,1440.35636438,0.00026573,30]
[325336468,1714742049329,1440.35636438,0.00026573,30]
[325336471,1714742064894,1440.35636438,0.00026572,30]
[325336476,1714742086949,1440.35636438,0.00026571,30]
[325336481,1714742112070,1074.96190872,0.00026571,30]
[325336485,1714742300950,619.00043257,0.0002658,19]
[325336510,1714742524552,200.18144808,9.999e-05,2]
[325336551,1714743032804,-199.9861592,0.00020912,2]
[325336552,1714743032815,-67460.37167158,0.00020913,2]
[325336553,1714743032825,-9464.357141,0.00021918,2]
[325336554,1714743032834,-166.666666,0.00021918,2]
[325336556,1714743032843,-166.666666,0.00022431,2]
[325336558,1714743032853,-869.61266376,0.000229,2]
[325336560,1714743032862,-166.666666,0.00022944,2]
[325336562,1714743032871,-714.56650019,0.00023,2]
[325336564,1714743032881,-166.666666,0.00023456,2]
[325336566,1714743032890,-166.666666,0.00023969,2]
[325336568,1714743032900,-869.61266375,0.00024428,2]
[325336569,1714743032910,-166.666666,0.00024482,2]
[325336572,1714743032927,-217.71147656,0.0002552,2]
[325336573,1714743032938,-1228.2,0.00025862,3]
[325336576,1714743032948,-869.61266375,0.00025957,2]
[325336577,1714743032958,-620.12355712,0.00026051,2]